fUST/lending_fUST_20250727
["ID","MTS","AMOUNT","RATE_DAILY","PERIOD"]
[375207381,1753585850197,-3162.37584053,0.00020314,3]
[375207382,1753585850206,-3162.37584053,0.00020521,3]
[375207383,1753585850215,-337.68,0.00020538,3]
[375207384,1753585850224,-151.0,0.00020547,2]
[375207385,1753585850234,-151.0,0.00020547,2]
[375207386,1753585850243,-151.0,0.00020547,2]
[375207387,1753585850253,-151.0,0.00020547,2]
[375207388,1753585850263,-151.0,0.00020547,2]
[375207389,1753585850273,-460.0,0.00020547,2]
[375207390,1753585850282,-460.0,0.00020547,2]
[375207391,1753585850291,-473.02162169,0.00020547,2]
[375207392,1753585850301,-460.0,0.00020547,2]
[375207393,1753585850310,-460.0,0.00020547,2]
[375207394,1753585850320,-460.0,0.00020547,2]
[375207395,1753585850329,-1261.95,0.00020547,2]
[375207396,1753585850339,-460.0,0.00020547,2]
[375207397,1753585850350,-460.0,0.00020547,2]
[375207398,1753585850359,-466.47,0.00020547,2]
[375207399,1753585850368,-460.0,0.00020547,2]
[375207400,1753585850377,-558.75,0.00020547,2]
[375207401,1753585850386,-460.0,0.00020547,2]
[375207402,1753585850395,-460.0,0.00020547,2]
[375207403,1753585850406,-460.0,0.00020547,2]
[375207404,1753585850415,-460.0,0.00020547,2]
[375207405,1753585850425,-460.0,0.00020547,2]
[375207406,1753585850434,-460.0,0.00020547,2]
[375207407,1753585850444,-460.0,0.00020547,2]
[375207408,1753585850453,-460.0,0.00020547,2]
[375207409,1753585850463,-649.59,0.00020547,2]
[375207410,1753585850472,-460.0,0.00020547,2]
[375207411,1753585850481,-723.02,0.00020547,2]
[375207412,1753585850491,-460.0,0.00020547,2]
[375207413,1753585850506,-460.0,0.00020547,2]
[375207414,1753585850515,-678.43,0.00020547,2]
[375207415,1753585850524,-460.0,0.00020547,2]
[375207416,1753585850533,-460.0,0.00020547,2]
[375207417,1753585850542,-460.0,0.00020547,2]
[375207418,1753585850551,-460.0,0.00020547,2]
[375207419,1753585850561,-460.0,0.00020547,2]
[375207420,1753585850571,-460.0,0.00020547,2]
[375207421,1753585850581,-460.0,0.00020547,2]
[375207422,1753585850590,-460.0,0.00020547,2]
[375207423,1753585850599,-460.0,0.00020547,2]
[375207424,1753585850609,-460.0,0.00020547,2]
[375207425,1753585850618,-460.0,0.00020547,2]
[375207426,1753585850627,-3087.7,0.00020547,2]
[375207427,1753585850636,-460.0,0.00020547,2]
[375207428,1753585850645,-460.0,0.00020547,2]
[375207429,1753585850654,-460.0,0.00020547,2]
[375207430,1753585850666,-638.57,0.00020547,2]
[375207431,1753585850675,-460.0,0.00020547,2]
[375207432,1753585850684,-504.77,0.00020547,2]
[375207433,1753585850693,-1104.21,0.00020547,2]
[375207434,1753585850702,-460.0,0.00020547,2]
[375207435,1753585850711,-460.0,0.00020547,2]
[375207436,1753585850721,-460.0,0.00020547,2]
[375207437,1753585850730,-1669.01,0.00020547,2]
[375207438,1753585850739,-460.0,0.00020547,2]
[375207439,1753585850749,-460.0,0.00020547,2]
[375207440,1753585850758,-460.0,0.00020547,2]
[375207441,1753585850768,-575.73543737,0.00020547,2]
[375207442,1753585850777,-460.0,0.00020547,2]
[375207443,1753585850787,-460.0,0.00020547,2]
[375207444,1753585850796,-460.0,0.00020547,2]
[375207445,1753585850805,-460.0,0.00020547,2]
[375207446,1753585850814,-460.0,0.00020547,2]
[375207447,1753585850824,-460.0,0.00020547,2]
[375207448,1753585850833,-1530.09,0.00020547,2]
[375207449,1753585850843,-460.0,0.00020547,2]
[375207450,1753585850852,-489.58,0.00020547,2]
[375207451,1753585850861,-460.0,0.00020547,2]
[375207452,1753585850871,-2196.33,0.00020547,2]
[375207453,1753585850882,-460.0,0.00020547,2]
[375207454,1753585850892,-737.36,0.00020547,2]
[375207455,1753585850902,-805.96,0.00020547,2]
[375207456,1753585850911,-2999.41,0.00020547,2]
[375207457,1753585850920,-460.0,0.00020547,2]
[375207458,1753585850930,-4733.4,0.00020547,2]
[375207459,1753585850943,-460.0,0.00020547,2]
[375207460,1753585850953,-460.0,0.00020547,2]
[375207461,1753585850963,-1210.32,0.00020547,2]
[375207462,1753585850972,-460.0,0.00020547,2]
[375207463,1753585850982,-484.95,0.00020547,2]
[375207464,1753585850992,-954.16,0.00020547,2]
[375207465,1753585851001,-787.14,0.00020547,2]
[375207466,1753585851011,-575.17,0.00020547,2]
[375207467,1753585851020,-1569.82,0.00020547,2]
[375207468,1753585851030,-460.0,0.00020547,2]
[375207469,1753585851039,-460.0,0.00020547,2]
[375207470,1753585851049,-734.37,0.00020547,2]
[375207471,1753585851058,-460.0,0.00020547,2]
[375207472,1753585851067,-460.0,0.00020547,2]
[375207473,1753585851077,-460.0,0.00020547,2]
[375207474,1753585851087,-1236.04,0.00020547,2]
[375207475,1753585851097,-516.98,0.00020547,2]
[375207476,1753585851106,-480.11,0.00020547,2]
[375207477,1753585851117,-460.0,0.00020547,2]
[375207478,1753585851126,-1693.74,0.00020547,2]
[375207479,1753585851136,-460.0,0.00020547,2]
[375207480,1753585851145,-460.0,0.00020547,2]
[375207481,1753585851155,-1149.26,0.00020547,2]
[375207482,1753585851164,-460.0,0.00020547,2]
[375207483,1753585851173,-487.79,0.00020547,2]
[375207484,1753585851182,-2674.55,0.00020547,2]
[375207485,1753585851192,-460.0,0.00020547,2]
[375207486,1753585851202,-460.0,0.00020547,2]
[375207487,1753585851211,-568.35,0.00020547,2]
[375207488,1753585851220,-460.0,0.00020547,2]
[375207489,1753585851229,-518.03,0.00020547,2]
[375207490,1753585851239,-460.0,0.00020547,2]
[375207491,1753585851248,-460.0,0.00020547,2]
[375207492,1753585851258,-460.0,0.00020547,2]
[375207493,1753585851267,-550.99,0.00020547,2]
[375207494,1753585851276,-460.0,0.00020547,2]
[375207495,1753585851291,-476.13,0.00020547,2]
[375207496,1753585851301,-1553.97,0.00020547,2]
[375207497,1753585851310,-687.76,0.00020547,2]
[375207498,1753585851320,-460.0,0.00020547,2]
[375207499,1753585851329,-509.1,0.00020547,2]
[375207500,1753585851338,-460.0,0.00020547,2]
[375207501,1753585851348,-492.35,0.00020547,2]
[375207502,1753585851358,-465.72489267,0.00020547,2]
[375207503,1753585851367,-460.0,0.00020547,2]
[375207504,1753585851377,-155.03697669,0.00020548,2]
[375207505,1753585851386,-500.0,0.00020548,2]
[375207506,1753585851395,-152.11806179,0.00020548,2]
[375207507,1753585851405,-151.75786345,0.00020548,2]
[375207508,1753585851414,-151.98906401,0.00020548,2]
[375207509,1753585851423,-502.34256926,0.00020548,2]
[375207510,1753585851432,-151.65856775,0.00020548,2]
[375207511,1753585851441,-500.0,0.00020548,2]
[375207512,1753585851451,-203.76573186,0.00020548,2]
[375207513,1753585851460,-500.0,0.00020548,2]
[375207514,1753585851469,-501.89290157,0.00020548,2]
[375207515,1753585851478,-151.0,0.00020548,2]
[375207516,1753585851487,-501.71490557,0.00020548,2]
[375207517,1753585851499,-500.0,0.00020568,2]
[375207518,1753585851509,-150.0,0.00020651,2]
[375207519,1753585851518,-3162.37584053,0.00020728,3]
[375207520,1753585851527,-420.0,0.00020788,2]
[375207521,1753585851537,-2000.0,0.00020816,2]
[375207522,1753585851546,-151.0,0.00020821,2]
[375207523,1753585851555,-151.0,0.00020821,2]
[375207524,1753585851564,-293.72464462,0.00020821,2]
[375207525,1753585851573,-151.0,0.00020821,2]
[375207526,1753585851583,-151.0,0.00020821,2]
[375207527,1753585851593,-460.0,0.00020821,2]
[375207528,1753585851602,-460.0,0.00020821,2]
[375207529,1753585851614,-401.09418904,0.00020821,2]
[375207530,1753585851624,-460.0,0.00020821,2]
[375207531,1753585851634,-460.0,0.00020821,2]
[375207532,1753585851643,-1261.95,0.00020821,2]
[375207533,1753585851652,-460.0,0.00020821,2]
[375207534,1753585851661,-460.0,0.00020821,2]
[375207535,1753585851670,-466.47,0.00020821,2]
[375207536,1753585851679,-460.0,0.00020821,2]
[375207537,1753585851689,-558.75,0.00020821,2]
[375207538,1753585851698,-460.0,0.00020821,2]
[375207539,1753585851707,-460.0,0.00020821,2]
[375207540,1753585851717,-460.0,0.00020821,2]
[375207541,1753585851726,-460.0,0.00020821,2]
[375207542,1753585851735,-460.0,0.00020821,2]
[375207543,1753585851745,-460.0,0.00020821,2]
[375207544,1753585851755,-460.0,0.00020821,2]
[375207545,1753585851764,-460.0,0.00020821,2]
[375207546,1753585851773,-649.59,0.00020821,2]
[375207547,1753585851783,-460.0,0.00020821,2]
[375207548,1753585851792,-723.02,0.00020821,2]
[375207549,1753585851801,-460.0,0.00020821,2]
[375207550,1753585851810,-678.43,0.00020821,2]
[375207551,1753585851820,-460.0,0.00020821,2]
[375207552,1753585851829,-460.0,0.00020821,2]
[375207553,1753585851839,-460.0,0.00020821,2]
[375207554,1753585851849,-460.0,0.00020821,2]
[375207555,1753585851859,-460.0,0.00020821,2]
[375207556,1753585851869,-334.06343794,0.00020821,2]
[375207557,1753585851880,-460.0,0.00020821,2]
[375207558,1753585851891,-460.0,0.00020821,2]
[375207559,1753585851900,-460.0,0.00020821,2]
[375207560,1753585851910,-460.0,0.00020821,2]
[375207561,1753585851919,-460.0,0.00020821,2]
[375207562,1753585851929,-3087.7,0.00020821,2]
[375207563,1753585851939,-460.0,0.00020821,2]
[375207564,1753585851949,-490.99361653,0.00020821,2]
[375207565,1753585851961,-638.57,0.00020821,2]
[375207566,1753585851970,-504.77,0.00020821,2]
[375207567,1753585851979,-1104.21,0.00020821,2]
[375207568,1753585851989,-460.0,0.00020821,2]
[375207569,1753585851999,-460.0,0.00020821,2]
[375207570,1753585852008,-1669.01,0.00020821,2]
[375207571,1753585852018,-263.68619859,0.00020821,2]
[375207572,1753585852029,-460.0,0.00020821,2]
[375207573,1753585852039,-460.0,0.00020821,2]
[375207574,1753585852048,-460.0,0.00020821,2]
[375207575,1753585852058,-460.0,0.00020821,2]
[375207576,1753585852067,-460.0,0.00020821,2]
[375207577,1753585852076,-460.0,0.00020821,2]
[375207578,1753585852085,-460.0,0.00020821,2]
[375207579,1753585852094,-1530.09,0.00020821,2]
[375207580,1753585852103,-460.0,0.00020821,2]
[375207581,1753585852112,-489.58,0.00020821,2]
[375207582,1753585852122,-460.0,0.00020821,2]
[375207583,1753585852131,-2196.33,0.00020821,2]
[375207584,1753585852140,-737.36,0.00020821,2]
[375207585,1753585852149,-805.96,0.00020821,2]
[375207586,1753585852158,-2999.41,0.00020821,2]
[375207587,1753585852167,-460.0,0.00020821,2]
[375207588,1753585852176,-4733.4,0.00020821,2]
[375207589,1753585852186,-357.33702085,0.00020821,2]
[375207590,1753585852195,-460.0,0.00020821,2]
[375207591,1753585852204,-1210.32,0.00020821,2]
[375207592,1753585852213,-460.0,0.00020821,2]
[375207593,1753585852223,-484.95,0.00020821,2]
[375207594,1753585852231,-954.16,0.00020821,2]
[375207595,1753585852241,-787.14,0.00020821,2]
[375207596,1753585852250,-575.17,0.00020821,2]
[375207597,1753585852259,-1569.82,0.00020821,2]
[375207598,1753585852269,-460.0,0.00020821,2]
[375207599,1753585852279,-460.0,0.00020821,2]
[375207600,1753585852288,-734.37,0.00020821,2]
[375207601,1753585852297,-460.0,0.00020821,2]
[375207602,1753585852306,-460.0,0.00020821,2]
[375207603,1753585852320,-460.0,0.00020821,2]
[375207604,1753585852329,-1236.04,0.00020821,2]
[375207605,1753585852338,-516.98,0.00020821,2]
[375207606,1753585852347,-480.11,0.00020821,2]
[375207607,1753585852356,-460.0,0.00020821,2]
[375207608,1753585852366,-1693.74,0.00020821,2]
[375207609,1753585852375,-460.0,0.00020821,2]
[375207610,1753585852384,-460.0,0.00020821,2]
[375207611,1753585852393,-1149.26,0.00020821,2]
[375207612,1753585852403,-466.48867009,0.00020821,2]
[375207613,1753585852412,-487.79,0.00020821,2]
[375207614,1753585852421,-2674.55,0.00020821,2]
[375207615,1753585852430,-460.0,0.00020821,2]
[375207616,1753585852440,-460.0,0.00020821,2]
[375207617,1753585852452,-568.35,0.00020821,2]
[375207618,1753585852461,-460.0,0.00020821,2]
[375207619,1753585852563,-518.03,0.00020821,2]
[375207620,1753585852573,-460.0,0.00020821,2]
[375207621,1753585852582,-460.0,0.00020821,2]
[375207622,1753585852591,-460.0,0.00020821,2]
[375207623,1753585852602,-550.99,0.00020821,2]
[375207624,1753585852611,-460.0,0.00020821,2]
[375207625,1753585852620,-476.13,0.00020821,2]
[375207626,1753585852630,-1553.97,0.00020821,2]
[375207627,1753585852640,-687.76,0.00020821,2]
[375207628,1753585852649,-460.0,0.00020821,2]
[375207629,1753585852658,-509.1,0.00020821,2]
[375207630,1753585852667,-460.0,0.00020821,2]
[375207631,1753585852677,-492.35,0.00020821,2]
[375207632,1753585852686,-560.14817577,0.00020821,2]
[375207633,1753585852695,-500.0,0.00020822,2]
[375207634,1753585852704,-500.0,0.00020822,2]
[375207635,1753585852713,-502.90380782,0.00020822,2]
[375207636,1753585852723,-151.0,0.00020822,2]
[375207637,1753585852732,-151.0,0.000209,3]
[375207638,1753585852741,-3162.37584053,0.00020934,4]
[375207639,1753585852750,-3000.0,0.00021,2]
[375207640,1753585852759,-3000.0,0.0002101,2]
[375207641,1753585852769,-3000.0,0.0002102,2]
[375207642,1753585852778,-3000.0,0.0002103,2]
[375207643,1753585852787,-3000.0,0.0002104,2]
[375207644,1753585852797,-3000.0,0.0002105,2]
[375207645,1753585852807,-3000.0,0.0002106,2]
[375207646,1753585852816,-3000.0,0.0002107,2]
[375207647,1753585852825,-501.20130537,0.00021073,2]
[375207648,1753585852834,-3000.0,0.0002108,2]
[375207649,1753585852843,-208.137,0.00021086,2]
[375207650,1753585852853,-3000.0,0.0002109,2]
[375207651,1753585852862,-151.0,0.00021095,2]
[375207652,1753585852871,-151.4207226,0.00021095,2]
[375207653,1753585852883,-151.0,0.00021095,2]
[375207654,1753585852893,-199.04713453,0.00021095,2]
[375207655,1753585852903,-460.0,0.00021095,2]
[375207656,1753585852912,-460.0,0.00021095,2]
[375207657,1753585852923,-460.0,0.00021095,2]
[375207658,1753585852933,-460.0,0.00021095,2]
[375207659,1753585852943,-1261.95,0.00021095,2]
[375207660,1753585852952,-460.0,0.00021095,2]
[375207661,1753585852963,-460.0,0.00021095,2]
[375207662,1753585852973,-466.47,0.00021095,2]
[375207663,1753585852982,-460.0,0.00021095,2]
[375207664,1753585852992,-558.75,0.00021095,2]
[375207665,1753585853001,-460.0,0.00021095,2]
[375207666,1753585853011,-460.0,0.00021095,2]
[375207667,1753585853021,-460.0,0.00021095,2]
[375207668,1753585853031,-460.0,0.00021095,2]
[375207669,1753585853040,-460.0,0.00021095,2]
[375207670,1753585853050,-460.0,0.00021095,2]
[375207671,1753585853059,-460.0,0.00021095,2]
[375207672,1753585853068,-460.0,0.00021095,2]
[375207673,1753585853077,-649.59,0.00021095,2]
[375207674,1753585853087,-460.0,0.00021095,2]
[375207675,1753585853097,-723.02,0.00021095,2]
[375207676,1753585853106,-598.04,0.00021095,2]
[375207677,1753585853115,-678.43,0.00021095,2]
[375207678,1753585853125,-460.0,0.00021095,2]
[375207679,1753585853134,-460.0,0.00021095,2]
[375207680,1753585853144,-460.0,0.00021095,2]
[375207681,1753585853153,-460.0,0.00021095,2]
[375207682,1753585853162,-460.0,0.00021095,2]
[375207683,1753585853172,-460.0,0.00021095,2]
[375207684,1753585853183,-460.0,0.00021095,2]
[375207685,1753585853192,-460.0,0.00021095,2]
[375207686,1753585853201,-460.0,0.00021095,2]
[375207687,1753585853210,-460.0,0.00021095,2]
[375207688,1753585853219,-3087.7,0.00021095,2]
[375207689,1753585853229,-460.0,0.00021095,2]
[375207690,1753585853238,-638.57,0.00021095,2]
[375207691,1753585853247,-504.77,0.00021095,2]
[375207692,1753585853257,-1104.21,0.00021095,2]
[375207693,1753585853266,-460.0,0.00021095,2]
[375207694,1753585853276,-460.0,0.00021095,2]
[375207695,1753585853285,-1669.01,0.00021095,2]
[375207696,1753585853294,-460.0,0.00021095,2]
[375207697,1753585853304,-460.0,0.00021095,2]
[375207698,1753585853314,-460.0,0.00021095,2]
[375207699,1753585853323,-460.0,0.00021095,2]
[375207700,1753585853331,-460.0,0.00021095,2]
[375207701,1753585853341,-460.0,0.00021095,2]
[375207702,1753585853351,-460.0,0.00021095,2]
[375207703,1753585853360,-1530.09,0.00021095,2]
[375207704,1753585853370,-460.0,0.00021095,2]
[375207705,1753585853379,-489.58,0.00021095,2]
[375207706,1753585853388,-460.0,0.00021095,2]
[375207707,1753585853397,-2196.33,0.00021095,2]
[375207708,1753585853407,-737.36,0.00021095,2]
[375207709,1753585853416,-805.96,0.00021095,2]
[375207710,1753585853425,-2999.41,0.00021095,2]
[375207711,1753585853435,-460.0,0.00021095,2]
[375207712,1753585853443,-4733.4,0.00021095,2]
[375207713,1753585853452,-460.0,0.00021095,2]
[375207714,1753585853463,-1210.32,0.00021095,2]
[375207715,1753585853472,-460.0,0.00021095,2]
[375207716,1753585853482,-484.95,0.00021095,2]
[375207717,1753585853491,-954.16,0.00021095,2]
[375207718,1753585853500,-787.14,0.00021095,2]
[375207719,1753585853510,-575.17,0.00021095,2]
[375207720,1753585853519,-1569.82,0.00021095,2]
[375207721,1753585853529,-460.0,0.00021095,2]
[375207722,1753585853540,-734.37,0.00021095,2]
[375207723,1753585853549,-460.0,0.00021095,2]
[375207724,1753585853559,-155.0,0.00021095,2]
[375207725,1753585853570,-460.0,0.00021095,2]
[375207726,1753585853580,-1236.04,0.00021095,2]
[375207727,1753585853590,-516.98,0.00021095,2]
[375207728,1753585853600,-480.11,0.00021095,2]
[375207729,1753585853610,-460.0,0.00021095,2]
[375207730,1753585853620,-1693.74,0.00021095,2]
[375207731,1753585853629,-460.0,0.00021095,2]
[375207732,1753585853639,-460.0,0.00021095,2]
[375207733,1753585853648,-1149.26,0.00021095,2]
[375207734,1753585853657,-487.79,0.00021095,2]
[375207735,1753585853667,-2674.55,0.00021095,2]
[375207736,1753585853676,-460.0,0.00021095,2]
[375207737,1753585853685,-460.0,0.00021095,2]
[375207738,1753585853694,-460.0,0.00021095,2]
[375207739,1753585853704,-568.35,0.00021095,2]
[375207740,1753585853713,-3250.79025723,0.00021095,2]
[375207741,1753585853722,-518.03,0.00021095,2]
[375207742,1753585853731,-460.0,0.00021095,2]
[375207743,1753585853741,-460.0,0.00021095,2]
[375207744,1753585853750,-460.0,0.00021095,2]
[375207745,1753585853760,-550.99,0.00021095,2]
[375207746,1753585853769,-460.0,0.00021095,2]
[375207747,1753585853779,-476.13,0.00021095,2]
[375207748,1753585853788,-1553.97,0.00021095,2]
[375207749,1753585853798,-687.76,0.00021095,2]
[375207750,1753585853807,-460.0,0.00021095,2]
[375207751,1753585853817,-509.1,0.00021095,2]
[375207752,1753585853826,-460.0,0.00021095,2]
[375207753,1753585853835,-492.35,0.00021095,2]
[375207754,1753585853844,-500.0,0.00021096,2]
[375207755,1753585853854,-500.0,0.00021096,2]
[375207756,1753585853863,-199.3826649,0.00021096,2]
[375207757,1753585853872,-3000.0,0.000211,2]
[375207758,1753585853884,-3000.0,0.0002111,2]
[375207759,1753585853895,-3000.0,0.0002112,2]
[375207760,1753585853904,-3000.0,0.0002113,2]
[375207761,1753585853914,-3000.0,0.0002114,2]
[375207762,1753585853924,-3162.37584053,0.00021141,4]
[375207763,1753585853934,-3000.0,0.0002115,2]
[375207764,1753585853944,-3995.888089,0.0002116,2]
[375207765,1753585853954,-500.0,0.00021164,2]
[375207766,1753585853965,-3032.76037046,0.00021348,5]
[375207767,1753585854244,-460.0,0.00019178,2]
[375207768,1753585854255,-460.0,0.00019452,2]
[375207769,1753585854266,-460.0,0.00019726,2]
[375207770,1753585854277,-129.61547007,0.00021348,5]
[375207771,1753585854287,-2500.0,0.00021364,2]
[375207772,1753585854299,-4041.94279069,0.00021367,2]
[375207773,1753585854308,-199.61733496,0.00021369,2]
[375207774,1753585854317,-199.7895054,0.00021369,2]
[375207775,1753585854327,-460.0,0.00021369,2]
[375207776,1753585854337,-460.0,0.00021369,2]
[375207777,1753585854347,-460.0,0.00021369,2]
[375207778,1753585854357,-1261.95,0.00021369,2]
[375207779,1753585854366,-460.0,0.00021369,2]
[375207780,1753585854377,-460.0,0.00021369,2]
[375207781,1753585854389,-466.47,0.00021369,2]
[375207782,1753585854399,-460.0,0.00021369,2]
[375207783,1753585854412,-460.0,0.00021369,2]
[375207784,1753585854422,-460.0,0.00021369,2]
[375207785,1753585854432,-460.0,0.00021369,2]
[375207786,1753585854444,-460.0,0.00021369,2]
[375207787,1753585854456,-460.0,0.00021369,2]
[375207788,1753585854466,-460.0,0.00021369,2]
[375207789,1753585854476,-460.0,0.00021369,2]
[375207790,1753585854486,-649.59,0.00021369,2]
[375207791,1753585854495,-460.0,0.00021369,2]
[375207792,1753585854505,-723.02,0.00021369,2]
[375207793,1753585854514,-678.43,0.00021369,2]
[375207794,1753585854525,-460.0,0.00021369,2]
[375207795,1753585854534,-460.0,0.00021369,2]
[375207796,1753585854544,-460.0,0.00021369,2]
[375207797,1753585854556,-460.0,0.00021369,2]
[375207798,1753585854566,-460.0,0.00021369,2]
[375207799,1753585854576,-460.0,0.00021369,2]
[375207800,1753585854586,-460.0,0.00021369,2]
[375207801,1753585854596,-460.0,0.00021369,2]
[375207802,1753585854605,-460.0,0.00021369,2]
[375207803,1753585854616,-460.0,0.00021369,2]
[375207804,1753585854625,-3087.7,0.00021369,2]
[375207805,1753585854635,-460.0,0.00021369,2]
[375207806,1753585854644,-638.57,0.00021369,2]
[375207807,1753585854654,-504.77,0.00021369,2]
[375207808,1753585854663,-1104.21,0.00021369,2]
[375207809,1753585854673,-460.0,0.00021369,2]
[375207810,1753585854683,-460.0,0.00021369,2]
[375207811,1753585854693,-1669.01,0.00021369,2]
[375207812,1753585854808,-460.0,0.00021369,2]
[375207813,1753585854818,-460.0,0.00021369,2]
[375207814,1753585854827,-322.98003322,0.00021369,2]
[375207815,1753585854837,-460.0,0.00021369,2]
[375207816,1753585854847,-460.0,0.00021369,2]
[375207817,1753585854859,-460.0,0.00021369,2]
[375207818,1753585854869,-460.0,0.00021369,2]
[375207819,1753585854880,-1530.09,0.00021369,2]
[375207820,1753585854893,-489.58,0.00021369,2]
[375207821,1753585854902,-460.0,0.00021369,2]
[375207822,1753585854912,-2196.33,0.00021369,2]
[375207823,1753585854924,-737.36,0.00021369,2]
[375207824,1753585854934,-805.96,0.00021369,2]
[375207825,1753585854944,-2999.41,0.00021369,2]
[375207826,1753585854956,-460.0,0.00021369,2]
[375207827,1753585854966,-4733.4,0.00021369,2]
[375207828,1753585854976,-460.0,0.00021369,2]
[375207829,1753585854986,-1210.32,0.00021369,2]
[375207830,1753585854996,-460.0,0.00021369,2]
[375207831,1753585855005,-484.95,0.00021369,2]
[375207832,1753585855015,-954.16,0.00021369,2]
[375207833,1753585855025,-787.14,0.00021369,2]
[375207834,1753585855035,-575.17,0.00021369,2]
[375207835,1753585855045,-628.41748644,0.00021369,2]
[375207836,1753585855057,-941.40251356,0.00021369,2]
[375207837,1753585855067,-127.63642219,0.00021369,2]
[375207838,1753585855079,-332.36357781,0.00021369,2]
[375207839,1753585855089,-661.25732355,0.00021369,2]
[375207840,1753585855100,-73.11267645,0.00021369,2]
[375207841,1753585855110,-460.0,0.00021369,2]
[375207842,1753585855119,-10.18732355,0.00021369,2]
[375207843,1753585855130,-449.81267645,0.00021369,2]
[375207844,1753585855139,-1236.04,0.00021369,2]
[375207845,1753585855148,-516.98,0.00021369,2]
[375207846,1753585855157,-480.11,0.00021369,2]
[375207847,1753585855167,-460.0,0.00021369,2]
[375207848,1753585855175,-112.17510984,0.00021369,2]
[375207849,1753585855187,-583.15,0.00021369,2]
[375207850,1753585855198,-661.98869106,0.00021369,2]
[375207851,1753585855210,-336.4261991,0.00021369,2]
[375207852,1753585855219,-360.57196106,0.00021369,2]
[375207853,1753585855229,-460.0,0.00021369,2]
[375207854,1753585855238,-1149.26,0.00021369,2]
[375207855,1753585855247,-487.79,0.00021369,2]
[375207856,1753585855257,-2674.55,0.00021369,2]
[375207857,1753585855266,-460.0,0.00021369,2]
[375207858,1753585855275,-460.0,0.00021369,2]
[375207859,1753585855285,-460.0,0.00021369,2]
[375207860,1753585855294,-568.35,0.00021369,2]
[375207861,1753585855303,-518.03,0.00021369,2]
[375207862,1753585855312,-460.0,0.00021369,2]
[375207863,1753585855322,-173.35605318,0.00021369,2]
[375207864,1753585855331,-460.0,0.00021369,2]
[375207865,1753585855340,-550.99,0.00021369,2]
[375207866,1753585855350,-460.0,0.00021369,2]
[375207867,1753585855360,-476.13,0.00021369,2]
[375207868,1753585855369,-1553.97,0.00021369,2]
[375207869,1753585855378,-687.76,0.00021369,2]
[375207870,1753585855388,-460.0,0.00021369,2]
[375207871,1753585855397,-509.1,0.00021369,2]
[375207872,1753585855406,-460.0,0.00021369,2]
[375207873,1753585855415,-492.35,0.00021369,2]
[375207874,1753585855425,-500.0,0.0002137,2]
[375207875,1753585855435,-500.0,0.0002137,2]
[375207876,1753585855444,-3162.37584053,0.00021555,5]
[375207877,1753585855454,-466.56677393,0.00021643,2]
[375207878,1753585855464,-460.0,0.00021643,2]
[375207879,1753585855474,-460.0,0.00021643,2]
[375207880,1753585855483,-1261.95,0.00021643,2]